Cogmind - Beta 13 @@@ ROGUE MODE // 2024.04.01 @ 10:52:26 Player: SuperDrops Result: Core destroyed Performance ------------- Evolutions (2) 1000 Regions Visited (5) 1000 Robots Destroyed (21) 105 Value Destroyed (477) 477 Prototype IDs (3) 60 Alien Tech Used (0) 0 Bonus (337) 337 TOTAL SCORE: 2979 Bonus ------- Follower Combat Kills 37 Aligned with FarCom 300 Cogmind --------- Core Integrity 0/550 Matter 300/300 Energy 100/100 System Corruption 1% Temperature Cool (0) Movement Core (50) Location -8/Materials Parts ------- > --- POWER (2) -------- (None) > --- PROPULSION (3) --- (None) > --- UTILITY (4) ------ (None) > --- WEAPON (2) ------- (None) > --- INVENTORY (5) ---- Aluminum Leg Carbon-fiber Leg Small Storage Unit Improved Terrain Scanner Improved EM Shotgun Peak State ------------ > --- POWER ------------ Ion Engine Light Ion Engine > --- PROPULSION ------- Gravmag System Gravmag System Gravmag System > --- UTILITY ---------- Humpback Hacking Suite Thief Drone Bay > --- WEAPON ----------- Hammer > --- INVENTORY -------- Aluminum Leg Carbon-fiber Leg Carbon-fiber Leg Compact Wheel Small Storage Unit Medium Storage Unit Large Storage Unit High-capacity Storage Unit Superbattery Improved Terrain Scanner Improved EM Shotgun Light Assault Rifle Grenade Launcher Mining Laser [Rating: 30] Favorites ----------- Power Ion Engine Engine Ion Engine Propulsion Compact Wheel Treads Light Treads Leg Carbon-fiber Leg Wheel Compact Wheel Hover Unit Gravmag System Utility Signal Interpreter Device Thief Drone Bay Storage Large Storage Unit Processor Signal Interpreter Hackware Hacking Suite Weapon Hammer Energy Gun Improved EM Shotgun Ballistic Gun Assault Rifle Impact Weapon Hammer Build | -11 -10 -10 -10 -9 -8 ------- Run | Yrd Mat Min Exi Min Mat Slots Evolved 4 | . . . . . 4 Power 1 | . . . . . 1 Propulsion 1 | . . . . . 1 Utility 2 | . . . . . 2 Weapon . | . . . . . . Parts Attached 28 | 7 5 . 4 2 10 Power 3 | 1 . . . . 2 Engine 3 | 1 . . . . 2 Core . | . . . . . . Reactor . | . . . . . . Propulsion 11 | 3 2 . . . 6 Treads 2 | 2 . . . . . Leg 3 | . . . . . 3 Wheel 3 | 1 2 . . . . Hover 3 | . . . . . 3 Flight . | . . . . . . Utility 10 | 1 3 . 2 2 2 Device 1 | . . . . 1 . Storage 7 | 1 2 . 2 1 1 Processor 1 | . 1 . . . . Hackware 1 | . . . . . 1 Protection . | . . . . . . Artifact . | . . . . . . Weapon 4 | 2 . . 2 . . Energy Gun 1 | . . . 1 . . Energy Cannon . | . . . . . . Ballistic Gun 2 | 2 . . . . . Ballistic Cannon . | . . . . . . Launcher . | . . . . . . Special Weapon . | . . . . . . Impact Weapon 1 | . . . 1 . . Slashing Weapon . | . . . . . . Piercing Weapon . | . . . . . . Special Melee Weapon . | . . . . . . Unidentified Prototypes 3 | . . . 2 1 . Parts Lost 12 | . 1 . . . 11 Power 2 | . . . . . 2 Propulsion 5 | . 1 . . . 4 Utility 3 | . . . . . 3 Weapon 2 | . . . . . 2 Highest Loss Streak 9 | . 1 . . . 9 To Critical Strikes 1 | . . . . . 1 Average Slot Usage (%) 93 | . 97 100 100 100 74 Engine 14 | . 14 14 14 14 15 Treads 3 | . 15 . . . . Wheel 21 | . 12 28 28 28 15 Device 3 | . . . . 4 8 Storage 13 | . 14 14 14 14 9 Processor 9 | . 11 14 14 9 . Hackware 1 | . . . . . 7 Energy Gun 6 | . . . 10 14 7 Ballistic Gun 10 | . 28 28 6 . . Impact Weapon 7 | . . . 10 14 8 Naked Turns 9 | . . . . . 9 Heaviest Build 254 | 13 28 28 30 54 254 Greatest Support 40 | 40 40 26 26 26 27 Greatest Overweight (x) 67 | . 1 1 1 2 67 Average Overweight (x) 1 | . . 1 . 1 8 Largest Inventory Capacity 35 | 8 15 15 15 20 35 Average Capacity 19 | 7 14 15 14 19 33 Most Carried 16 | 6 15 15 15 14 16 Average Carried 12 | 4 12 15 14 13 11 Final Capacity 20 | 8 15 15 15 20 5 Final Carried 15 | 6 15 15 14 12 5 Class Distribution -------------------- 77% | Mutant 22% | Hauler-Mutant Dominant Class ---------------- Mutant | -10/Materials Mutant | -10/Mines Mutant | -10/Exiles Mutant | -9/Mines Hauler-Mutant | -8/Materials Resources | -11 -10 -10 -10 -9 -8 ----------- Run | Yrd Mat Min Exi Min Mat Matter Collected 605 | 184 198 59 . 119 45 Remotely . | . . . . . . Salvage Created 563 | 8 319 42 . 21 173 Parts 37 | . 26 6 . . 5 Haulers Intercepted . | . . . . . . Recyclers Shooed . | . . . . . . Parts Field Recycled . | . . . . . . Retrieved Matter . | . . . . . . Parts Self-Destructed . | . . . . . . Prevented . | . . . . . . Kills | -11 -10 -10 -10 -9 -8 ------- Run | Yrd Mat Min Exi Min Mat Combat Hostiles Destroyed 16 | . 9 3 . . 4 Melee 4 | . . . . . 4 Guns 12 | . 9 3 . . . Classes Destroyed 7 | 1 3 . . 1 2 Worker 1 | 1 . . . . . Builder 1 | . . . . 1 . Watcher 3 | . 3 . . . . Swarmer 8 | . 5 3 . . . Grunt 6 | . 4 . . . 2 Sentry 1 | . . . . . 1 Hunter 1 | . . . . . 1 Best Kill Streak 4 | 1 4 3 . 1 1 Combat Bots Only 4 | . 4 3 . . 1 Max Kills in Single Turn 1 | 1 1 1 . 1 1 Gunslinging . | . . . . . . Exploded . | . . . . . . Melee 1 | . . . . . 1 Uniques/NPCs Destroyed . | . . . . . . Combat | -11 -10 -10 -10 -9 -8 -------- Run | Yrd Mat Min Exi Min Mat Hostile Shots Fired 261 | . 81 16 . . 164 Missed 78 | . 32 3 . . 43 Damage Taken 2259 | . 497 100 . . 1662 Core 634 | . 65 19 . . 550 Absorbed by Shields . | . . . . . . Regen/Repaired (Parts) 58 | . . . . . 58 Core Remaining (%) 83 | 100 . . . 66 . Volleys Fired 48 | . 41 7 . . . Largest 2 | . 2 2 . . . Hottest 40 | . 40 40 . . . Shots Fired 96 | . 82 14 . . . Gun 96 | . 82 14 . . . Cannon . | . . . . . . Launcher . | . . . . . . Special . | . . . . . . Kinetic 96 | . 82 14 . . . Thermal . | . . . . . . Explosive . | . . . . . . Electromagnetic . | . . . . . . Robot Hit Streak 8 | . 8 4 . . . Robot Miss Streak 5 | . 5 3 . . . Penetration Max . | . . . . . . Secondary Targets 3 | . 2 1 . . . Max Gunslinging Chain 1 | . 1 1 . . . Shots Hit Robots 74 | . 43 8 . 2 21 Core Hits 37 | . 23 4 . . 10 Critical Kills 2 | . . . . . 2 Critical Parts Destroyed 3 | . . . . . 3 Critical Strikes 5 | . . . . . 5 Smash 5 | . . . . . 5 Melee Attacks 28 | . . . . 2 26 Impact 28 | . . . . 2 26 Slashing . | . . . . . . Piercing . | . . . . . . Sneak Attacks 2 | . . . . 2 . Combat Hostiles . | . . . . . . Follow-up Attacks . | . . . . . . Damage Inflicted 1233 | 2 488 97 . 97 549 Guns 583 | . 487 96 . . . Cannons . | . . . . . . Explosions . | . . . . . . Melee 600 | . . . . 97 503 Ramming 50 | 2 1 1 . . 46 Kinetic 583 | . 487 96 . . . Thermal . | . . . . . . Explosive . | . . . . . . Electromagnetic . | . . . . . . Impact 600 | . . . . 97 503 Slashing . | . . . . . . Piercing . | . . . . . . Highest Corruption 1 | . . . . . 1 Average Corruption 1 | . . . . . 1 Corruption Purged . | . . . . . . Corruption Blocked . | . . . . . . Effects 3 | . . . . . 3 Matter Fused 2 | . . . . . 2 Data Loss (major) 1 | . . . . . 1 Overload Shots . | . . . . . . Overflow Damage 105 | . . . . 27 78 Projectiles . | . . . . . . Explosions . | . . . . . . Melee 105 | . . . . 27 78 Knockbacks 3 | . . 1 . . 2 Impact 3 | . . 1 . . 2 Kinetic . | . . . . . . Secondary . | . . . . . . Self-Inflicted Damage 21 | . . . . . 21 Shots . | . . . . . . Rammed 15 | . 1 1 . . 13 Targets Rammed 16 | 1 1 1 . . 13 Kicked . | . . . . . . Crushed 1 | 1 . . . . . Highest Temperature 43 | . 43 . . . 8 Average Temperature 12 | . 12 . . . 6 Received Heat Transfer 669 | . 156 . . . 513 Siege Activations . | . . . . . . Robots Corrupted . | . . . . . . Combat Hostiles . | . . . . . . Parts Fried 6 | . . . . 3 3 Impact Corruptions 7 | . . . . 3 4 Robots Melted . | . . . . . . Combat Hostiles . | . . . . . . Parts Melted . | . . . . . . Heat Transferred . | . . . . . . Parts Sabotaged . | . . . . . . Parts Stolen . | . . . . . . Parts Stripped . | . . . . . . Power Chain Reactions . | . . . . . . Alert | -11 -10 -10 -10 -9 -8 ------- Run | Yrd Mat Min Exi Min Mat Peak Influence 182 | . 182 70 . 5 110 Initial 3 | . 3 . . . . Average 38 | . 89 46 . 1 18 Maximum Alert Level . | . . . . . . Low Security (%) 100 | 100 100 100 . 100 100 Level 1 . | . . . . . . Level 2 . | . . . . . . Level 3 . | . . . . . . Level 4 . | . . . . . . Level 5 . | . . . . . . High Security . | . . . . . . Max Security . | . . . . . . Squads Dispatched 4 | . 1 . . . 3 Investigation 2 | . 1 . . . 1 Extermination . | . . . . . . Reinforcement 2 | . . . . . 2 Assault . | . . . . . . Garrison . | . . . . . . Intercept . | . . . . . . Searches Triggered . | . . . . . . Construction Impeded . | . . . . . . Haulers Reinforced . | . . . . . . Active Scanning Responses . | . . . . . . Cargo Convoy Interrupts . | . . . . . . Stealth | -11 -10 -10 -10 -9 -8 --------- Run | Yrd Mat Min Exi Min Mat Distress Signals 2 | . . . . . 2 Communications Jammed . | . . . . . . Distress Signals . | . . . . . . Times Spotted 29 | . 15 3 . . 11 Peak Tracking Total 6 | . 4 3 . . 6 Tactical Retreats . | . . . . . . Traps | -11 -10 -10 -10 -9 -8 ------- Run | Yrd Mat Min Exi Min Mat Traps Triggered 2 | . 2 . . . . Indirectly . | . . . . . . Trap Hack Attempts . | . . . . . . Triggered . | . . . . . . Disarmed . | . . . . . . Reprogrammed . | . . . . . . Reused . | . . . . . . Traps Extracted . | . . . . . . Installed . | . . . . . . Triggered . | . . . . . . Machines | -11 -10 -10 -10 -9 -8 ---------- Run | Yrd Mat Min Exi Min Mat Machines Disabled . | . . . . . . Max in Single Turn . | . . . . . . Machines Repaired . | . . . . . . Machines Dismantled . | . . . . . . Machines Sabotaged . | . . . . . . Overloaded Fab Kills . | . . . . . . Hacking | -11 -10 -10 -10 -9 -8 --------- Run | Yrd Mat Min Exi Min Mat Machines Accessed 7 | . . . 4 1 2 Terminals . | . . . . . . Fabricators . | . . . . . . Repair Stations 1 | . . . . . 1 Recycling Units . | . . . . . . Scanalyzers 1 | . . . . . 1 Garrison Access . | . . . . . . Total Hacks 55 | . . . 49 1 5 Successful 54 | . . . 49 1 4 Failed 1 | . . . . . 1 Catastrophic . | . . . . . . Database Lockouts . | . . . . . . Manual 1 | . . . 1 . . Terminals . | . . . . . . Fabricators . | . . . . . . Repair Stations 3 | . . . . . 3 Recycling Units . | . . . . . . Scanalyzers 2 | . . . . . 2 Garrison Access . | . . . . . . Terminal Hacks 50 | . . . 49 1 . Record 49 | . . . 49 . . Open Door 1 | . . . . 1 . Fabricator Hacks . | . . . . . . Repair Station Hacks 2 | . . . . . 2 Scan Component 1 | . . . . . 1 Repair 1 | . . . . . 1 Recycling Unit Hacks . | . . . . . . Scanalyzer 2 | . . . . . 2 Insert Component 1 | . . . . . 1 Analyze 1 | . . . . . 1 Garrison Access Hacks . | . . . . . . Unauthorized Hacks . | . . . . . . Terminals . | . . . . . . Fabricators . | . . . . . . Repair Stations . | . . . . . . Recycling Units . | . . . . . . Scanalyzers . | . . . . . . Garrison Access . | . . . . . . Data Cores Recovered . | . . . . . . Used . | . . . . . . Hacking Detections 2 | . . . . . 2 Full Trace Events 1 | . . . . . 1 Feedback Events 1 | . . . . . 1 Corruption 1 | . . . . . 1 Feedback Blocked . | . . . . . . Robot Schematics Acquired . | . . . . . . Robots Built . | . . . . . . Authchips . | . . . . . . Time . | . . . . . . Total Robot Build Rating . | . . . . . . Part Schematics Acquired . | . . . . . . Parts Built . | . . . . . . Authchips . | . . . . . . Time . | . . . . . . Total Part Build Rating . | . . . . . . Parts Repaired 1 | . . . . . 1 Time 13 | . . . . . 13 Parts Recycled . | . . . . . . Recycled Matter . | . . . . . . Retrieved Matter . | . . . . . . Retrieved Components . | . . . . . . Parts Scanalyzed 1 | . . . . . 1 Part Schematics Acquired . | . . . . . . Parts Damaged . | . . . . . . Bothacking | -11 -10 -10 -10 -9 -8 ------------ Run | Yrd Mat Min Exi Min Mat Used RIF Installer . | . . . . . . Robots Hacked . | . . . . . . Non-combat . | . . . . . . Combat . | . . . . . . Robot Hacks Applied . | . . . . . . Relay Couplers Released . | . . . . . . Fabnet Peak Effective % . | . . . . . . Robots Rewired . | . . . . . . Allies Hacked . | . . . . . . Hacks Repelled . | . . . . . . Allies | -11 -10 -10 -10 -9 -8 -------- Run | Yrd Mat Min Exi Min Mat Total Allies 2 | . . . . 2 . Largest Group 2 | . . . . 2 2 Highest-Rated Group 45 | . . . . 45 45 Highest-Rated Ally 31 | . . . . 31 31 Total Orders . | . . . . . . Ally Attacks 14 | . . . . . 14 Total Damage 189 | . . . . . 189 Kills 1 | . . . . . 1 Allies Corrupted . | . . . . . . Allies Melted . | . . . . . . Intel | -11 -10 -10 -10 -9 -8 ------- Run | Yrd Mat Min Exi Min Mat Robot Analysis Total . | . . . . . . Derelict Logs Recovered 2 | . . . . 2 . Drone Launches . | . . . . . . Drone Recoveries . | . . . . . . Exploration | -11 -10 -10 -10 -9 -8 ------------- Run | Yrd Mat Min Exi Min Mat Turns Passed 3666 | 104 923 286 775 714 864 Spaces Moved 2627 | 65 623 251 718 639 331 Core 21 | 16 . . . . 5 Treads 271 | 39 232 . . . . Legs . | . . . . . . Wheels 2331 | 10 391 251 718 639 322 Hover 4 | . . . . . 4 Flight . | . . . . . . Fastest Speed 50 | 50 105 105 90 105 50 Average Speed 126 | 123 125 105 104 109 224 Slowest Speed 3400 | 160 160 105 105 120 3400 Overloaded Moves . | . . . . . . Propulsion Burnouts . | . . . . . . Robots Hopped . | . . . . . . Cave-ins Triggered . | . . . . . . Exploration Rate (%) 49 | 6 70 40 74 87 21 Regions Visited 5 Branch Regions 3 Pre-discovered Areas 1 | . . . 1 . . Known Exits Taken 4 | . 1 1 1 1 . Unknown Exits Taken 1 | 1 . . . . . Scrap Searched 3 | . . 1 . 2 . Spaces Dug . | . . . . . . Terrain Destroyed . | . . . . . . Melee . | . . . . . . Projectile . | . . . . . . AOE . | . . . . . . Terrain Rammed . | . . . . . . Walls Destroyed . | . . . . . . Machines Disabled . | . . . . . . Actions | -11 -10 -10 -10 -9 -8 --------- Run | Yrd Mat Min Exi Min Mat Total 2829 | 88 689 261 741 647 403 Wait 26 | 4 5 1 . . 16 Move 2623 | 65 622 250 717 638 331 Hop . | . . . . . . Pick Up 50 | 12 13 1 14 2 8 Fast Attach . | . . . . . . Attach 13 | 6 2 . . . 5 Detach . | . . . . . . Swap 15 | 1 3 . 4 2 5 Drop 12 | . 2 1 6 3 . Fire 48 | . 41 7 . . . Melee 28 | . . . . 2 26 Ram 13 | . . 1 . . 12 Kick . | . . . . . . Crush 1 | . 1 . . . . Escape Stasis . | . . . . . . Rewire . | . . . . . . Trap . | . . . . . . Miscellaneous . | . . . . . . Route ------- -11/Scrapyard -10/Materials (discovered 3 exits: *Mat x2 / *Min) -10/Mines -10/Exiles (discovered 2 exits: *Min x2) -9/Mines (discovered 2 exits: *Mat x2) -8/Materials History --------- Turn | Location | Event 18 | -11/Scrapyard | Discovered new exit (range 16) 105 | -11/Scrapyard | Entered Materials 313 | -10/Materials | Build established: Mutant 377 | -10/Materials | Discovered new exit (range 4) 385 | -10/Materials | Identified exit to Materials 396 | -10/Materials | Discovered new exit (range 16) 448 | -10/Materials | Identified exit to Mines 628 | -10/Materials | Discovered exit to Materials (range 16) 1028 | -10/Materials | Entered Mines 1044 | -10/Mines | Met a Derelict bent on vengeance 1195 | -10/Mines | Deemed a non-threat by the Exiles lab entrance 1196 | -10/Mines | Discovered new exit (range 5) 1199 | -10/Mines | Identified exit to Exiles 1254 | -10/Mines | YI-UF0 nonchalantly dropped a Grenade Launcher on the ground 1259 | -10/Mines | Assembled infested the area 1314 | -10/Mines | Entered Exiles 1349 | -10/Exiles | Met 8R-AWN 1370 | -10/Exiles | Met EX-HEX 1412 | -10/Exiles | Met EX-BIN 1428 | -10/Exiles | Aligned with FarCom system 1429 | -10/Exiles | Given EX-Vault access code 1474 | -10/Exiles | Opened EX-Vault 1482 | -10/Exiles | Found Prototype Storage 1483 | -10/Exiles | Identified Superbattery 1536 | -10/Exiles | Warned to stay clear of 0b10 Research branches 1565 | -10/Exiles | Met EX-DEC 1596 | -10/Exiles | Learned location of Zion (-7) 1749 | -10/Exiles | Discovered new exit (range 14) 1760 | -10/Exiles | Identified exit to Mines 1941 | -10/Exiles | Discovered exit to Mines (range 15) 2089 | -10/Exiles | Left Exiles lab with Superbattery 2089 | -10/Exiles | Entered Mines 2102 | -9/Mines | Discovered new exit (range 7) 2108 | -9/Mines | Identified exit to Materials 2114 | -9/Mines | Learned 2 Materials zone layouts 2314 | -9/Mines | Discovered exit to Materials (range 5) 2448 | -9/Mines | Learned Materials trap positions 2537 | -9/Mines | Found the Drone Emporium 2543 | -9/Mines | Found Prototype Device 2550 | -9/Mines | Identified Thief Drone Bay 2803 | -9/Mines | Entered Materials 2803 | -8/Materials | Accompanied by 2 allies 2803 | -8/Materials | Evolved 4 slots: Power x1, Propulsion x1, Utility x2 2805 | -8/Materials | Loaded intel: 18 trap records 2808 | -8/Materials | Led the pair of lost Derelicts to an unsafe place 3096 | -8/Materials | Repaired Ion Engine? 3104 | -8/Materials | Build established: Hauler-Mutant 3646 | -8/Materials | Core integrity fell below 50% 3659 | -8/Materials | Core integrity fell below 20% 3667 | -8/Materials | Core destroyed Last Messages --------------- R-06 Scavenger collects Grenade Launcher. R-06 Scavenger collects Carbon-fiber Leg. R-06 Scavenger collects Com. Wheel. R-06 Scavenger collects Lrg. Storage Unit. Penetrated by Slug. R-06 Scavenger collects Hcp. Storage Unit. Hammer destroyed. Penetrated by Slug. M-28 Smith repairs G-47 Trooper. R-06 Scavenger collects Med. Storage Unit. Slug penetrates Wall. Slammed into G-47 Trooper. Destabilizing: Core damaged (-11). Slammed into G-47 Trooper. ALERT: Hostiles spotted, dispatching reinforcements to Terminal M011. Hacking Suite destroyed. Slammed into G-47 Trooper. Penetrated by Slug. Slammed into G-47 Trooper. Map ----- +----------------------------------------------------+ | ?????????????????????????????????????????????????? | | ?????????????????????????????????^???????????????? | | ?????????????????????????????????????????????????? | | ?????????????????????????????????^???????????????? | | ?????????????????????????????????????????????????? | | ?????????????????????????????????????????????????? | | ?????????????????????????????????????????????????? | | ?????????????????????????????????????????????????? | | ?????????????????????????????????????????????????? | | ?????????????????????????????????????????????????? | | ??????????????????????Y? ??????????????????????? | | ???????????????????????# ??????????????????????? | | ???????????????????????# #?????????????????????? | | ???????????????????????# #?????????????????????? | | ???????????????????????#w #?????????????????????? | | ???????????????????????# #?????????????????????? | | ???????????????????????# #?????????????????????? | | ???????????????????????# #?????????????????????? | | ???????????????????????# #?????????????????????? | | ???????????????????????# #?????????????????????? | | ???????????????????????# #?????????????????????? | | ???????????????????????# #?????????????????????? | | ???????????????????????#k #?????????????????????? | | ######################## #?????????????????????? | | ^ ^ #??########???????????? | | ^ g@%#??#!! ||#???????????? | | ^ ^ ^ u m%#??#!! =||#???????????? | | ###+####################%%%#??# #???????????? | | # #???????????????# #### #####???????? | | # #???????????????#h w #???????? | | # #???????????????# #???????? | | # #???????????????# %% % #???????? | | # #???????????????####/######+### + ?????? | | # #????????????????? [r| ?? # # ????? | | ########??????????????? ! # "" # #? ???? | | #???????????????????? *!! #!! Y" # #?####### | | #???????????????????# [ *!! #!! "" # ### | | #???????????????????# *! # # % +% "" | | #????????##########?# # ! # ### * """ | | #????????# ?# "T" ######## #?# % " | | #???###### """ " ?# #??????# #?# = "" | | ##### # """ "G" ?### #######??????# #?# " | | # """ " " ???##?????????????# #?# | | T + ??????????????????# #?# ! | | ##### # ??????????????????# #?####### | | #???## ## ??????????????????# ######### | | #????# ## ??????????????????# | | ?????????????????????????????????????# ######### | | ?????????????????????????????????????# #?????? | | ?????????############################# #???? | +----------------------------------------------------+ Best States ------------- Heat Dissipation 31 Energy Generation 15 Energy Capacity 400 Matter Stores 300 Matter Capacity 300 Sight Range 16 Terrain Scan Density 10 Evasion (%) 50 Recoil Reduction 2 Offensive Hacking 10 Item Schematics ----------------- None Robot Schematics ------------------ None Fabricated ------------ Nothing Alien Tech Used ----------------- None Achievements -------------- Librarian Tank Tourist Challenges ------------ None Game ------ Seed VortexMappingDetector Manual? 0 Play Time 00:50:50 Cumulative 2.4 hours Start 2024.04.01 @ 09:42:16 End 2024.04.01 @ 10:52:26 Sessions 1 Manual Loads 0 Difficulty Rogue Special Mode None Game No. 8 Rogue 8 Adventurer 0 Explorer 0 Win Type - Total 0 Types 0/0/0/0/0/0/0/0/0 Lore% 9 Gallery% 5 Achievement% 5 Wizard Run 0 Options --------- Layout 1 ASCII 0 Keyboard 0 Movement Numpad Keybinds 0 Fullscreen 2 Font 24/Proggy Map View 50x35 Zoom Use 0% Tactical HUD 0 Map Filters NONE Filters NONE Steam 1 RUN: ca3e2c87-05db-4d19-af42-37f37349f496